[Event "Vener-dì-Rapid"]
[Site "Chess.com"]
[Date "2020.05.22"]
[Round "3"]
[White "Luca090267"]
[Black "laremaro"]
[Result "0-1"]
[WhiteElo "1441"]
[BlackElo "1569"]
[TimeControl "720+3"]
[EndTime "12:54:05 PDT"]
[Termination "laremaro ha vinto per abbandono"]

1. e4 {[%clk 0:12:02.9]} 1... e5 {[%clk 0:11:54.2]} 2. Nf3 {[%clk 0:12:04.5]}
2... Nc6 {[%clk 0:11:54.1]} 3. Bb5 {[%clk 0:12:06.1]} 3... a6 {[%clk 0:11:55.1]}
4. Ba4 {[%clk 0:12:07.4]} 4... Nf6 {[%clk 0:11:56.1]} 5. O-O {[%clk 0:12:06]}
5... b5 {[%clk 0:11:54.1]} 6. Bb3 {[%clk 0:12:06.4]} 6... Be7 {[%clk 0:11:56.6]}
7. Re1 {[%clk 0:12:00.9]} 7... O-O {[%clk 0:11:57.2]} 8. c3 {[%clk 0:12:01.6]}
8... d6 {[%clk 0:11:51.6]} 9. d3 {[%clk 0:12:02.7]} 9... Bg4 {[%clk 0:11:24.9]}
10. h3 {[%clk 0:12:03.4]} 10... Bxf3 {[%clk 0:11:25.9]} 11. Qxf3 {[%clk
0:12:04.5]} 11... Na5 {[%clk 0:11:25.3]} 12. Bc2 {[%clk 0:12:04]} 12... c5
{[%clk 0:11:26.3]} 13. Nd2 {[%clk 0:12:00]} 13... Nc6 {[%clk 0:11:26.1]} 14. Nf1
{[%clk 0:11:58.5]} 14... Re8 {[%clk 0:11:24.5]} 15. Ng3 {[%clk 0:11:57.3]} 15...
g6 {[%clk 0:11:17.2]} 16. Be3 {[%clk 0:11:11.8]} 16... Nd7 {[%clk 0:11:05.3]}
17. Qe2 {[%clk 0:10:54.2]} 17... Bf6 {[%clk 0:11:04.9]} 18. f4 {[%clk
0:10:51.3]} 18... exf4 {[%clk 0:11:07]} 19. Bxf4 {[%clk 0:10:51.1]} 19... Nde5
{[%clk 0:10:50.9]} 20. Nf1 {[%clk 0:10:28.4]} 20... d5 {[%clk 0:10:43.4]} 21.
Qd2 {[%clk 0:10:23.5]} 21... dxe4 {[%clk 0:10:43.8]} 22. Rxe4 {[%clk 0:10:05.3]}
22... Qb6 {[%clk 0:10:19.3]} 23. Kh1 {[%clk 0:09:53.7]} 23... Rad8 {[%clk
0:10:17.4]} 24. Rae1 {[%clk 0:09:28.4]} 24... Bg7 {[%clk 0:09:53.3]} 25. Ne3
{[%clk 0:08:15.8]} 25... f5 {[%clk 0:09:25.9]} 26. Bxe5 {[%clk 0:07:22]} 26...
fxe4 {[%clk 0:09:25]} 27. Bxg7 {[%clk 0:07:12]} 27... Kxg7 {[%clk 0:09:22.9]}
28. b3 {[%clk 0:06:03.9]} 28... exd3 {[%clk 0:09:20.1]} 29. Bxd3 {[%clk
0:06:03.2]} 29... Ne5 {[%clk 0:09:15.6]} 30. Ng4 {[%clk 0:04:55.3]} 30... Nxg4
{[%clk 0:08:46.9]} 31. Rxe8 {[%clk 0:04:50.9]} 31... Rxe8 {[%clk 0:08:40.5]} 32.
hxg4 {[%clk 0:04:50.9]} 32... Qe6 {[%clk 0:08:13.8]} 33. Qf4 {[%clk 0:04:30.5]}
33... Qe1+ {[%clk 0:08:07]} 34. Kh2 {[%clk 0:04:25.8]} 34... Qe5 {[%clk
0:08:08.7]} 35. g3 {[%clk 0:04:18.5]} 35... Qxf4 {[%clk 0:08:04.9]} 36. gxf4
{[%clk 0:04:19]} 36... Re3 {[%clk 0:08:06.3]} 37. Bf1 {[%clk 0:04:12.7]} 37...
Rxc3 {[%clk 0:08:03.6]} 38. Bg2 {[%clk 0:04:14.1]} 38... Rc2 {[%clk 0:08:05]}
39. Kg3 {[%clk 0:04:14.2]} 39... Rxa2 {[%clk 0:08:04.5]} 40. Bb7 {[%clk
0:04:15.3]} 40... Ra3 {[%clk 0:08:03.4]} 41. Kh4 {[%clk 0:04:13.8]} 41... h6
{[%clk 0:08:05]} 42. Bc8 {[%clk 0:04:13.9]} 42... Rxb3 {[%clk 0:07:58.8]} 43.
Bxa6 {[%clk 0:04:15.3]} 43... c4 {[%clk 0:08:00.7]} 0-1

[Event "Vener-dì-Rapid"]
[Site "Chess.com"]
[Date "2020.05.22"]
[Round "3"]
[White "SanSecondoPR"]
[Black "Mrtre7"]
[Result "1/2-1/2"]
[WhiteElo "1318"]
[BlackElo "1423"]
[TimeControl "720+3"]
[EndTime "13:07:27 PDT"]
[Termination "Partita patta per stallo"]

1. e4 {[%clk 0:12:02.9]} 1... c5 {[%clk 0:11:59.5]} 2. d4 {[%clk 0:12:02.3]}
2... cxd4 {[%clk 0:12:00.5]} 3. Nf3 {[%clk 0:12:03.2]} 3... Nc6 {[%clk
0:11:54.2]} 4. Nxd4 {[%clk 0:12:04]} 4... e6 {[%clk 0:11:51.6]} 5. Nc3 {[%clk
0:12:03.9]} 5... Bb4 {[%clk 0:11:50.6]} 6. Nb3 {[%clk 0:11:52.4]} 6... Qc7
{[%clk 0:11:46]} 7. Qf3 {[%clk 0:11:46.8]} 7... Nf6 {[%clk 0:11:05.8]} 8. Bd3
{[%clk 0:11:42.7]} 8... O-O {[%clk 0:10:49.3]} 9. O-O {[%clk 0:11:42.2]} 9...
Ne5 {[%clk 0:10:25.1]} 10. Qg3 {[%clk 0:11:37.2]} 10... Bd6 {[%clk 0:09:17.4]}
11. Nb5 {[%clk 0:11:29.1]} 11... Nxd3 {[%clk 0:07:45.7]} 12. Nxc7 {[%clk
0:11:18.6]} 12... Bxg3 {[%clk 0:07:44]} 13. Nxa8 {[%clk 0:11:13.9]} 13... Nxc1
{[%clk 0:06:26.5]} 14. fxg3 {[%clk 0:11:06.7]} 14... Ne2+ {[%clk 0:06:03.2]} 15.
Kf2 {[%clk 0:10:52.5]} 15... Nxe4+ {[%clk 0:05:22.6]} 16. Kxe2 {[%clk 0:10:47]}
16... d5 {[%clk 0:05:24.2]} 17. Nc7 {[%clk 0:10:42.9]} 17... Bd7 {[%clk
0:05:24.4]} 18. a4 {[%clk 0:10:00]} 18... a6 {[%clk 0:04:23.5]} 19. c4 {[%clk
0:09:48.7]} 19... Rc8 {[%clk 0:03:50.3]} 20. cxd5 {[%clk 0:08:49.2]} 20... Rxc7
{[%clk 0:03:49]} 21. dxe6 {[%clk 0:08:37.6]} 21... Bxe6 {[%clk 0:03:49.8]} 22.
Nd4 {[%clk 0:08:28.3]} 22... Bc4+ {[%clk 0:03:35.1]} 23. Ke1 {[%clk 0:08:21.7]}
23... Bxf1 {[%clk 0:03:35.2]} 24. Kxf1 {[%clk 0:08:19.8]} 24... g6 {[%clk
0:02:52]} 25. Re1 {[%clk 0:08:07.9]} 25... Nd2+ {[%clk 0:02:46]} 26. Ke2 {[%clk
0:08:01.3]} 26... Nc4 {[%clk 0:02:38.3]} 27. Rc1 {[%clk 0:06:49.2]} 27... Re7+
{[%clk 0:02:37.9]} 28. Kf3 {[%clk 0:06:28.2]} 28... Nxb2 {[%clk 0:02:26.2]} 29.
Rc8+ {[%clk 0:06:27.4]} 29... Kg7 {[%clk 0:02:26.8]} 30. a5 {[%clk 0:06:05]}
30... Re5 {[%clk 0:01:44]} 31. Rc7 {[%clk 0:05:48.7]} 31... Rxa5 {[%clk
0:01:42.5]} 32. Ne6+ {[%clk 0:05:28.5]} 32... Kf6 {[%clk 0:01:37.5]} 33. Nd8
{[%clk 0:05:13.4]} 33... Rf5+ {[%clk 0:01:21.3]} 34. Ke4 {[%clk 0:04:56.9]}
34... Re5+ {[%clk 0:01:21.8]} 35. Kd4 {[%clk 0:04:46.5]} 35... Re7 {[%clk
0:01:23.1]} 36. Rxb7 {[%clk 0:04:15.1]} 36... Rxb7 {[%clk 0:01:20.9]} 37. Nxb7
{[%clk 0:04:13.4]} 37... Kf5 {[%clk 0:01:09.3]} 38. Na5 {[%clk 0:04:09.9]} 38...
Nd1 {[%clk 0:01:03.8]} 39. Kd3 {[%clk 0:03:58.2]} 39... Nf2+ {[%clk 0:01:04.7]}
40. Ke3 {[%clk 0:03:53.2]} 40... Ng4+ {[%clk 0:01:06.2]} 41. Ke2 {[%clk
0:03:43.6]} 41... Nxh2 {[%clk 0:01:08]} 42. Nc6 {[%clk 0:03:27.3]} 42... Kg4
{[%clk 0:01:09.3]} 43. Kf2 {[%clk 0:03:21.5]} 43... h5 {[%clk 0:01:03]} 44. Ne5+
{[%clk 0:03:19.3]} 44... Kf5 {[%clk 0:01:03.9]} 45. Nxf7 {[%clk 0:03:17.5]}
45... a5 {[%clk 0:00:58.7]} 46. Nd6+ {[%clk 0:03:18.2]} 46... Ke6 {[%clk
0:00:58.7]} 47. Nb5 {[%clk 0:03:15.5]} 47... a4 {[%clk 0:00:59.9]} 48. Ke3
{[%clk 0:02:59.1]} 48... Kd5 {[%clk 0:00:59.9]} 49. Nc3+ {[%clk 0:02:57.5]}
49... Kc4 {[%clk 0:00:55.7]} 50. Nxa4 {[%clk 0:02:57.8]} 50... Kb4 {[%clk
0:00:57]} 51. Nb2 {[%clk 0:02:56.6]} 51... Kc5 {[%clk 0:00:58.9]} 52. Nd3+
{[%clk 0:02:56.5]} 52... Kd5 {[%clk 0:01:00.7]} 53. Nf4+ {[%clk 0:02:56.7]}
53... Ke5 {[%clk 0:00:59]} 54. Nxg6+ {[%clk 0:02:56.4]} 54... Kf5 {[%clk
0:01:01.1]} 55. Nh4+ {[%clk 0:02:53.8]} 55... Kg4 {[%clk 0:01:02.1]} 56. Kf2
{[%clk 0:02:42.6]} 56... Kg5 {[%clk 0:01:00]} 57. Nf3+ {[%clk 0:02:41.3]} 57...
Nxf3 {[%clk 0:00:58.9]} 58. gxf3 {[%clk 0:02:41.2]} 58... Kf5 {[%clk 0:01:00.8]}
59. Ke3 {[%clk 0:02:41.2]} 59... Ke5 {[%clk 0:01:01.3]} 60. f4+ {[%clk 0:02:37]}
60... Kf5 {[%clk 0:01:03]} 61. Kf3 {[%clk 0:02:36.3]} 61... Kf6 {[%clk
0:01:03.1]} 62. Ke4 {[%clk 0:02:36.6]} 62... Ke6 {[%clk 0:01:02.8]} 63. f5+
{[%clk 0:02:34.6]} 63... Kf6 {[%clk 0:01:04.6]} 64. Kf4 {[%clk 0:02:35.1]} 64...
Kg7 {[%clk 0:01:03.9]} 65. Kg5 {[%clk 0:02:35.9]} 65... Kf7 {[%clk 0:01:05.3]}
66. g4 {[%clk 0:02:36.2]} 66... hxg4 {[%clk 0:01:03.7]} 67. Kxg4 {[%clk
0:02:36.6]} 67... Kf6 {[%clk 0:01:04.5]} 68. Kf4 {[%clk 0:02:37.4]} 68... Kf7
{[%clk 0:01:06.1]} 69. Ke5 {[%clk 0:02:37.4]} 69... Ke7 {[%clk 0:01:04.2]} 70.
f6+ {[%clk 0:02:32.2]} 70... Kf7 {[%clk 0:01:05.7]} 71. Kf5 {[%clk 0:02:31.4]}
71... Kf8 {[%clk 0:01:02.9]} 72. Ke6 {[%clk 0:02:27.5]} 72... Ke8 {[%clk
0:01:04.4]} 73. Kf5 {[%clk 0:02:10.9]} 73... Kf7 {[%clk 0:01:05.7]} 74. Kg5
{[%clk 0:02:10.3]} 74... Kf8 {[%clk 0:01:04.1]} 75. Kg6 {[%clk 0:02:08.6]} 75...
Kg8 {[%clk 0:01:05.7]} 76. f7+ {[%clk 0:01:53.6]} 76... Kf8 {[%clk 0:01:06.7]}
77. Kf6 {[%clk 0:01:50]} 1/2-1/2

[Event "Vener-dì-Rapid"]
[Site "Chess.com"]
[Date "2020.05.22"]
[Round "3"]
[White "mr6701"]
[Black "pedrak"]
[Result "1-0"]
[WhiteElo "1732"]
[BlackElo "1694"]
[TimeControl "720+3"]
[EndTime "13:09:20 PDT"]
[Termination "mr6701 ha vinto per abbandono"]

1. e4 {[%clk 0:12:02.9]} 1... d5 {[%clk 0:12:00.4]} 2. exd5 {[%clk 0:11:55.2]}
2... Qxd5 {[%clk 0:12:00.2]} 3. Nc3 {[%clk 0:11:55.4]} 3... Qd6 {[%clk
0:12:01.2]} 4. d4 {[%clk 0:11:57.5]} 4... Nf6 {[%clk 0:12:01.9]} 5. Nf3 {[%clk
0:11:59.8]} 5... Bg4 {[%clk 0:12:02.2]} 6. Be2 {[%clk 0:11:59.5]} 6... c6 {[%clk
0:12:03.1]} 7. O-O {[%clk 0:11:58.7]} 7... e6 {[%clk 0:12:03.9]} 8. Bg5 {[%clk
0:11:59.9]} 8... Be7 {[%clk 0:12:02.3]} 9. Bh4 {[%clk 0:12:01.3]} 9... O-O
{[%clk 0:11:52.4]} 10. h3 {[%clk 0:11:57.5]} 10... Bxf3 {[%clk 0:11:52.8]} 11.
Bxf3 {[%clk 0:11:59.4]} 11... Rd8 {[%clk 0:11:44.5]} 12. Ne2 {[%clk 0:11:54.2]}
12... Qc7 {[%clk 0:11:23.4]} 13. Qc1 {[%clk 0:11:46.7]} 13... Nbd7 {[%clk
0:11:23]} 14. c3 {[%clk 0:11:38.5]} 14... Nf8 {[%clk 0:11:22]} 15. Qc2 {[%clk
0:11:30]} 15... Ng6 {[%clk 0:11:21.4]} 16. Bg3 {[%clk 0:11:32.1]} 16... Bd6
{[%clk 0:11:22.8]} 17. Qb3 {[%clk 0:11:21.4]} 17... Bxg3 {[%clk 0:11:21.1]} 18.
Nxg3 {[%clk 0:11:23]} 18... Rd7 {[%clk 0:11:06.2]} 19. Rae1 {[%clk 0:11:18.5]}
19... Rad8 {[%clk 0:11:06.1]} 20. Ne4 {[%clk 0:11:11.7]} 20... Nd5 {[%clk
0:10:49.5]} 21. g3 {[%clk 0:10:54.5]} 21... Nde7 {[%clk 0:10:39.1]} 22. Ng5
{[%clk 0:10:43.4]} 22... Nd5 {[%clk 0:10:25]} 23. Re2 {[%clk 0:10:24.9]} 23...
h6 {[%clk 0:10:24.4]} 24. Ne4 {[%clk 0:10:18.8]} 24... b6 {[%clk 0:10:20.6]} 25.
Rfe1 {[%clk 0:10:18.8]} 25... Nde7 {[%clk 0:09:55.4]} 26. Bg4 {[%clk 0:10:04.6]}
26... Nd5 {[%clk 0:09:35]} 27. Qc2 {[%clk 0:09:37.6]} 27... f5 {[%clk
0:09:30.4]} 28. Bh5 {[%clk 0:09:39.1]} 28... Nf8 {[%clk 0:09:03.4]} 29. Nd2
{[%clk 0:09:30.1]} 29... g6 {[%clk 0:09:02.2]} 30. Bf3 {[%clk 0:09:25.2]} 30...
Nf6 {[%clk 0:08:59.5]} 31. Nc4 {[%clk 0:09:22.4]} 31... Rg7 {[%clk 0:08:36.8]}
32. Qc1 {[%clk 0:09:04.5]} 32... Kh7 {[%clk 0:08:35.8]} 33. h4 {[%clk
0:08:49.3]} 33... c5 {[%clk 0:08:19.6]} 34. dxc5 {[%clk 0:08:33.1]} 34... Qxc5
{[%clk 0:08:19.4]} 35. Ne5 {[%clk 0:08:25.2]} 35... N6d7 {[%clk 0:07:59.1]} 36.
Nc6 {[%clk 0:08:14.3]} 36... Ra8 {[%clk 0:07:32.9]} 37. c4 {[%clk 0:07:09.2]}
37... Rc8 {[%clk 0:06:59.3]} 38. b4 {[%clk 0:07:02.9]} 38... Qd6 {[%clk
0:06:53.1]} 39. Rd1 {[%clk 0:06:46.7]} 39... Qc7 {[%clk 0:06:45.3]} 40. Qe3
{[%clk 0:06:37.2]} 40... Re8 {[%clk 0:06:30.7]} 41. b5 {[%clk 0:05:58.7]} 41...
e5 {[%clk 0:06:21.8]} 42. Bd5 {[%clk 0:05:40.3]} 42... e4 {[%clk 0:05:42]} 43.
Qd4 {[%clk 0:04:32.2]} 43... Ne6 {[%clk 0:05:17.3]} 44. Bxe6 {[%clk 0:04:32.6]}
44... Rxe6 {[%clk 0:05:17.6]} 45. Qd5 {[%clk 0:04:16.3]} 45... Nc5 {[%clk
0:05:02.1]} 46. h5 {[%clk 0:03:45.2]} 46... Rf6 {[%clk 0:04:41.9]} 47. hxg6+
{[%clk 0:03:39.2]} 47... Rgxg6 {[%clk 0:04:14.9]} 48. Ne5 {[%clk 0:02:58.3]}
48... Rg7 {[%clk 0:04:04.5]} 49. Red2 {[%clk 0:02:55.4]} 49... f4 {[%clk
0:03:45.3]} 50. g4 {[%clk 0:02:35.8]} 50... f3 {[%clk 0:03:01]} 51. Kh1 {[%clk
0:02:20]} 51... Qc8 {[%clk 0:02:26.2]} 52. Rg1 {[%clk 0:02:18.4]} 52... Qe8
{[%clk 0:02:13]} 53. Rg3 {[%clk 0:02:08.7]} 53... Re6 {[%clk 0:01:53.1]} 54. Nc6
{[%clk 0:01:35.3]} 54... Nd3 {[%clk 0:01:42.3]} 55. Qf5+ {[%clk 0:01:07.9]}
55... Qg6 {[%clk 0:01:32.9]} 56. Nd4 {[%clk 0:00:50.3]} 56... Rf6 {[%clk
0:01:27]} 57. Qd5 {[%clk 0:00:36.1]} 57... Nf4 {[%clk 0:01:14]} 58. Qa8 {[%clk
0:00:29.1]} 58... Nd3 {[%clk 0:01:09.5]} 59. Nf5 {[%clk 0:00:28.9]} 59... Rd7
{[%clk 0:01:04.3]} 60. Qxe4 {[%clk 0:00:28.4]} 60... Nc5 {[%clk 0:01:01.3]} 61.
Rxd7+ {[%clk 0:00:29.4]} 61... Nxd7 {[%clk 0:01:03.3]} 62. Qe7+ {[%clk
0:00:31.2]} 62... Rf7 {[%clk 0:01:05.4]} 63. Qe4 {[%clk 0:00:32]} 63... Nf6
{[%clk 0:01:06.4]} 64. Qf4 {[%clk 0:00:31.4]} 64... Rd7 {[%clk 0:01:06.5]} 65.
Rh3 {[%clk 0:00:31.8]} 65... Ng8 {[%clk 0:01:06.7]} 66. Nxh6 {[%clk 0:00:31.2]}
66... Qb1+ {[%clk 0:00:55.3]} 67. Kh2 {[%clk 0:00:32]} 67... Qc2 {[%clk
0:00:26.1]} 68. Nf5+ {[%clk 0:00:26.2]} 68... Kg6 {[%clk 0:00:20.8]} 69. Rxf3
{[%clk 0:00:17.3]} 69... Rh7+ {[%clk 0:00:16.9]} 70. Kg3 {[%clk 0:00:12.8]}
70... Nf6 {[%clk 0:00:13.5]} 71. Nh4+ {[%clk 0:00:14.1]} 71... Rxh4 {[%clk
0:00:10.4]} 72. Qxf6+ {[%clk 0:00:16.4]} 72... Kh7 {[%clk 0:00:09.9]} 73. Qxh4+
{[%clk 0:00:18.3]} 73... Kg7 {[%clk 0:00:11.2]} 74. Qg5+ {[%clk 0:00:19.3]}
74... Kh7 {[%clk 0:00:12.6]} 75. Qf5+ {[%clk 0:00:21.2]} 75... Qxf5 {[%clk
0:00:13.9]} 76. Rxf5 {[%clk 0:00:24.1]} 1-0

[Event "Vener-dì-Rapid"]
[Site "Chess.com"]
[Date "2020.05.22"]
[Round "4"]
[White "SanSecondoPR"]
[Black "mr6701"]
[Result "0-1"]
[WhiteElo "1316"]
[BlackElo "1739"]
[TimeControl "720+3"]
[EndTime "13:16:33 PDT"]
[Termination "mr6701 ha vinto per scaccomatto"]

1. e4 {[%clk 0:12:02.9]} 1... d5 {[%clk 0:12:01.9]} 2. Nf3 {[%clk 0:12:02.9]}
2... dxe4 {[%clk 0:12:02.7]} 3. Ng5 {[%clk 0:12:03.8]} 3... Bf5 {[%clk
0:12:05.2]} 4. Be2 {[%clk 0:12:00.7]} 4... h6 {[%clk 0:12:02]} 5. g4 {[%clk
0:11:59.1]} 5... Bg6 {[%clk 0:11:43.4]} 6. Nh3 {[%clk 0:11:57.2]} 6... e5 {[%clk
0:11:44.8]} 7. O-O {[%clk 0:11:21.8]} 7... Qh4 {[%clk 0:11:30.8]} 8. f4 {[%clk
0:10:28]} 8... Qxh3 {[%clk 0:11:22.6]} 9. f5 {[%clk 0:10:25.5]} 9... Bh7 {[%clk
0:11:23.7]} 10. Rf2 {[%clk 0:10:22.8]} 10... h5 {[%clk 0:11:20.2]} 11. Bf1
{[%clk 0:10:19.9]} 11... Qh4 {[%clk 0:11:17.2]} 12. h3 {[%clk 0:10:01.3]} 12...
Bc5 {[%clk 0:11:17]} 13. d4 {[%clk 0:09:59.7]} 13... Bxd4 {[%clk 0:11:17.6]} 14.
Qe1 {[%clk 0:09:45.1]} 14... hxg4 {[%clk 0:11:10.7]} 15. Be3 {[%clk 0:09:42.1]}
15... Qg3+ {[%clk 0:11:08]} 16. Kh1 {[%clk 0:09:37.5]} 16... Bxe3 {[%clk
0:11:05.1]} 17. Nc3 {[%clk 0:09:21.9]} 17... Bxf2 {[%clk 0:10:50.4]} 18. Qxe4
{[%clk 0:09:14.3]} 18... Bxf5 {[%clk 0:10:35]} 19. Bb5+ {[%clk 0:09:03.4]} 19...
c6 {[%clk 0:10:17.7]} 20. Qxf5 {[%clk 0:09:02]} 20... Rxh3# {[%clk 0:10:16.6]}
0-1

[Event "Vener-dì-Rapid"]
[Site "Chess.com"]
[Date "2020.05.22"]
[Round "4"]
[White "laremaro"]
[Black "sergiodone"]
[Result "1-0"]
[WhiteElo "1576"]
[BlackElo "1438"]
[TimeControl "720+3"]
[EndTime "13:28:58 PDT"]
[Termination "laremaro ha vinto per abbandono"]

1. e4 {[%clk 0:12:02.9]} 1... c5 {[%clk 0:11:51.9]} 2. d4 {[%clk 0:12:04.1]}
2... cxd4 {[%clk 0:11:53]} 3. c3 {[%clk 0:12:04.7]} 3... d6 {[%clk 0:11:36.3]}
4. cxd4 {[%clk 0:12:05.3]} 4... e6 {[%clk 0:11:35.7]} 5. Nf3 {[%clk 0:12:06.6]}
5... Be7 {[%clk 0:11:37.1]} 6. Be2 {[%clk 0:12:05.4]} 6... a6 {[%clk 0:11:38.9]}
7. O-O {[%clk 0:12:06.5]} 7... Nf6 {[%clk 0:11:40.8]} 8. Nc3 {[%clk 0:12:07.9]}
8... O-O {[%clk 0:11:34.4]} 9. h3 {[%clk 0:11:55.9]} 9... b5 {[%clk 0:11:36.1]}
10. Qd3 {[%clk 0:11:51.8]} 10... Bb7 {[%clk 0:11:37.5]} 11. e5 {[%clk
0:11:45.6]} 11... dxe5 {[%clk 0:11:35.1]} 12. Nxe5 {[%clk 0:11:42.9]} 12... Nc6
{[%clk 0:11:27.6]} 13. Be3 {[%clk 0:11:38.8]} 13... Nxe5 {[%clk 0:11:28]} 14.
dxe5 {[%clk 0:11:40]} 14... Qxd3 {[%clk 0:11:28.9]} 15. Bxd3 {[%clk 0:11:42.1]}
15... Nd5 {[%clk 0:11:29.5]} 16. Nxd5 {[%clk 0:11:39.3]} 16... Bxd5 {[%clk
0:11:29.2]} 17. b3 {[%clk 0:11:22.6]} 17... Rfc8 {[%clk 0:11:30]} 18. Rac1
{[%clk 0:11:23.4]} 18... g6 {[%clk 0:11:18.2]} 19. Rfd1 {[%clk 0:11:22.6]} 19...
Kg7 {[%clk 0:11:18.5]} 20. Rxc8 {[%clk 0:11:11]} 20... Rxc8 {[%clk 0:11:18.7]}
21. Rc1 {[%clk 0:11:13.5]} 21... Rxc1+ {[%clk 0:11:11.9]} 22. Bxc1 {[%clk
0:11:14.5]} 22... Bc5 {[%clk 0:11:12.5]} 23. Bb2 {[%clk 0:11:09.1]} 23... h5
{[%clk 0:11:10.2]} 24. Kf1 {[%clk 0:10:50.8]} 24... Kf8 {[%clk 0:11:11.6]} 25.
g3 {[%clk 0:10:46.9]} 25... Ke7 {[%clk 0:11:12.9]} 26. f4 {[%clk 0:10:48.5]}
26... Kd7 {[%clk 0:11:10.7]} 27. Bc1 {[%clk 0:10:42.9]} 27... Kc6 {[%clk
0:11:11.1]} 28. Ke2 {[%clk 0:10:44.7]} 28... Bd4 {[%clk 0:11:01.7]} 29. g4
{[%clk 0:10:24.7]} 29... hxg4 {[%clk 0:10:46.9]} 30. hxg4 {[%clk 0:10:25.8]}
30... Bg2 {[%clk 0:09:56.1]} 31. Be3 {[%clk 0:08:48.6]} 31... Bxe3 {[%clk
0:09:56.9]} 32. Kxe3 {[%clk 0:08:50.3]} 32... Kd5 {[%clk 0:09:57.5]} 33. a3
{[%clk 0:08:31.6]} 33... Kc5 {[%clk 0:09:54]} 34. Be4 {[%clk 0:08:22.8]} 34...
Bh3 {[%clk 0:09:08.9]} 35. Bf3 {[%clk 0:07:55]} 35... Bf1 {[%clk 0:08:55.1]} 36.
g5 {[%clk 0:06:55.5]} 36... b4 {[%clk 0:08:54.9]} 37. a4 {[%clk 0:06:50.4]}
37... a5 {[%clk 0:08:55]} 38. Bd1 {[%clk 0:06:39.4]} 38... Ba6 {[%clk
0:08:51.6]} 39. Bf3 {[%clk 0:05:39.4]} 39... Bc8 {[%clk 0:08:51.1]} 40. Be2
{[%clk 0:05:15.2]} 40... Bb7 {[%clk 0:08:44.6]} 41. Bb5 {[%clk 0:05:13]} 41...
Bd5 {[%clk 0:08:44]} 42. Be8 {[%clk 0:05:09.1]} 42... Bxb3 {[%clk 0:08:41.5]}
43. Bxf7 {[%clk 0:05:10.4]} 43... Bd5 {[%clk 0:08:39.1]} 44. Bxg6 {[%clk
0:05:10.7]} 44... b3 {[%clk 0:08:40.7]} 45. Bb1 {[%clk 0:05:07.9]} 45... Bc6
{[%clk 0:08:32.5]} 46. f5 {[%clk 0:05:02.1]} 46... exf5 {[%clk 0:08:19.6]} 47.
g6 {[%clk 0:04:56.6]} 47... Bd5 {[%clk 0:08:21]} 48. Kf4 {[%clk 0:04:54.2]}
48... Be4 {[%clk 0:07:59.4]} 49. g7 {[%clk 0:04:50.6]} 49... Bd5 {[%clk
0:07:56.6]} 50. Kxf5 {[%clk 0:04:48.5]} 50... Kb4 {[%clk 0:07:57.8]} 51. e6
{[%clk 0:04:49.7]} 51... Kxa4 {[%clk 0:07:57.2]} 52. g8=Q {[%clk 0:04:48.9]}
52... Ka3 {[%clk 0:07:52.1]} 53. Qg3 {[%clk 0:03:59]} 53... a4 {[%clk
0:07:41.8]} 54. e7 {[%clk 0:03:52.4]} 54... Bf7 {[%clk 0:07:31.8]} 55. Qg7
{[%clk 0:03:41.4]} 55... Be8 {[%clk 0:07:26.5]} 56. Qf8 {[%clk 0:03:42.7]} 56...
Bb5 {[%clk 0:07:23.2]} 57. e8=Q+ {[%clk 0:03:43.9]} 57... Kb2 {[%clk 0:07:17.4]}
58. Qxb5 {[%clk 0:03:44]} 58... Kxb1 {[%clk 0:07:18.2]} 59. Qxa4 {[%clk
0:03:43.2]} 1-0